Cogmind - Beta 15 @@@ ROGUE MODE // 2025.09.22 @ 14:11:11 Player: Petvaria Result: Destroyed by H-77 Assassin with Coil Gun Performance ------------- Evolutions (7) 3500 Regions Visited (19) 3800 Robots Destroyed (110) 550 Value Destroyed (2404) 2404 Prototype IDs (219) 4380 Alien Tech Used (2) 400 Bonus (9930) 9930 TOTAL SCORE: 24964 Bonus ------- High Alert Combat Kills 67 Follower Combat Kills 107 Met Data Miner 300 Used Data Conduit 3000 Met Warlord at Base 500 MAIN.C Attacked Warlord 500 Found Hidden Lab 3000 Decrypted A0 Command 3000 Friendly Fire -544 Cogmind --------- Core Integrity 0/1300 Matter 11/300 Energy 99/100 System Corruption 0% Temperature Cool (0) Movement Core (50) Location -3/Research Parts ------- > --- POWER (2) -------- (None) > --- PROPULSION (7) --- (None) > --- UTILITY (11) ----- Improved Signal Interpreter > --- WEAPON (2) ------- (None) > --- INVENTORY (5) ---- Experimental Targeting Computer Weapon Mount LC Capacitor Peak State ------------ > --- POWER ------------ Backup Power VII > --- PROPULSION ------- Improved Flight Unit Xenon Bombardment Thruster Field Propulsion Drive Nuclear Pulse Array Nuclear Pulse Array > --- UTILITY ---------- Medium Storage Unit Advanced Sensor Array Improved Signal Interpreter Hacking Suite Hacking Suite Hacking Suite Hacking Suite Makeshift Hacking Suite Improved Hacking Suite > --- WEAPON ----------- Improved Datajack Makeshift Hammer > --- INVENTORY -------- Nuclear Pulse Array Cooled Impulse Thruster Cooled Impulse Thruster Advanced Power Amplifier Advanced Targeting Computer Experimental Targeting Computer Weapon Mount Hacking Suite Hacking Suite [Rating: 86] Favorites ----------- Power Backup Power VII Engine Light Ion Engine Power Core Backup Power VII Reactor Fusion Reactor Propulsion Improved Flight Unit Treads Light Treads Wheel Compact Wheel Flight Unit Improved Flight Unit Utility Hacking Suite Device Advanced Sensor Array Storage Medium Storage Unit Processor Improved Signal Interpreter Hackware Hacking Suite Protection Medium Armor Plating Artifact LC Capacitor Weapon Improved Datajack Energy Gun Medium Laser Energy Cannon Warp Cannon Ballistic Gun Improved Assault Rifle Ballistic Cannon Enhanced Hardcell Cannon Impact Weapon Makeshift Hammer Slashing Weapon Makeshift Sword Special Melee Weapon Improved Datajack Build | -11 -10 -9 -8 -7 -7 -7 -7 -6 -6 -5 -5 -5 -4 -4 -4 -4 -4 -4 -3 ------- Run | Yrd Mat Mat Mat Fac Low Low Dat Pro Fac Fac Upp War Pro Fac Was Fac Arm Lab Res Slots Evolved 14 | . . 2 2 2 . . . . 2 2 . . . 2 . . . . 2 Power . | . . . . . . . . . . . . . . . . . . . . Propulsion 5 | . . 1 1 . . . . . 1 . . . . 2 . . . . . Utility 9 | . . 1 1 2 . . . . 1 2 . . . . . . . . 2 Weapon . | . . . . . . . . . . . . . . . . . . . . Parts Attached 96 | 6 5 24 23 3 1 1 . 1 3 2 1 3 1 4 1 2 10 2 3 Power 10 | 1 . 1 3 1 . . . . . . . 1 . . . 1 1 . 1 Engine 3 | 1 . 1 . . . . . . . . . 1 . . . . . . . Core 4 | . . . 3 1 . . . . . . . . . . . . . . . Reactor 3 | . . . . . . . . . . . . . . . . 1 1 . 1 Propulsion 38 | 2 2 13 10 . . . . 1 1 . . . 1 3 . 1 4 . . Treads 22 | 2 1 12 7 . . . . . . . . . . . . . . . . Leg . | . . . . . . . . . . . . . . . . . . . . Wheel 1 | . 1 . . . . . . . . . . . . . . . . . . Hover . | . . . . . . . . . . . . . . . . . . . . Flight 15 | . . 1 3 . . . . 1 1 . . . 1 3 . 1 4 . . Utility 34 | 1 3 7 5 2 1 . . . 2 2 1 1 . 1 1 . 4 1 2 Device 6 | . . . . 1 . . . . 1 . . . . . . . 4 . . Storage 4 | 1 3 . . . . . . . . . . . . . . . . . . Processor 2 | . . . . 1 . . . . . . 1 . . . . . . . . Hackware 9 | . . . 3 . 1 . . . 1 1 . 1 . 1 . . . . 1 Protection 12 | . . 7 2 . . . . . . 1 . . . . 1 . . 1 . Artifact 1 | . . . . . . . . . . . . . . . . . . . 1 Weapon 14 | 2 . 3 5 . . 1 . . . . . 1 . . . . 1 1 . Energy Gun 2 | 1 . 1 . . . . . . . . . . . . . . . . . Energy Cannon 1 | . . . . . . . . . . . . . . . . . . 1 . Ballistic Gun 6 | 1 . 2 3 . . . . . . . . . . . . . . . . Ballistic Cannon 1 | . . . . . . . . . . . . . . . . . 1 . . Launcher . | . . . . . . . . . . . . . . . . . . . . Special Weapon . | . . . . . . . . . . . . . . . . . . . . Impact Weapon 1 | . . . . . . . . . . . . 1 . . . . . . . Slashing Weapon 2 | . . . 1 . . 1 . . . . . . . . . . . . . Piercing Weapon . | . . . . . . . . . . . . . . . . . . . . Special Melee Weapon 1 | . . . 1 . . . . . . . . . . . . . . . . Unidentified Prototypes 7 | . . 2 . . . . . . . . . 1 . . . . . 2 2 Parts Lost 35 | . . 2 5 . . . 2 . . . . . 3 1 . 1 13 4 4 Power 6 | . . 1 1 . . . 1 . . . . . . . . . 3 . . Propulsion 13 | . . 1 . . . . 1 . . . . . 2 . . . 5 4 . Utility 13 | . . . 3 . . . . . . . . . 1 . . 1 4 . 4 Weapon 3 | . . . 1 . . . . . . . . . . 1 . . 1 . . Highest Loss Streak 6 | . . 1 2 . . . 2 . . . . . 3 1 . 1 6 4 2 To Critical Strikes . | . . . . . . . . . . . . . . . . . . . . Average Backups 11 | 3 8 14 14 9 10 10 10 9 9 8 10 10 9 8 9 9 9 9 6 Power . | . 1 1 . 1 1 1 1 . . 1 1 1 1 . . . . 1 . Propulsion 3 | 1 4 4 5 3 4 3 3 2 2 1 1 2 2 2 3 2 1 . . Utility 5 | . 1 4 5 4 5 5 6 6 6 5 6 6 6 6 6 6 7 7 4 Weapon 1 | . 1 3 2 . . . . . 1 1 1 . . . . . . . . Tool/Special . | . . . . . . . . . . . . . . . . . . . . Unused Backups 23 | . . 6 2 3 . 1 . . . . . 2 . . . 1 . 3 5 Power 2 | . . . . 2 . . . . . . . . . . . . . . . Propulsion 8 | . . 4 . . . 1 . . . . . 1 . . . 1 . . 1 Utility 10 | . . 1 . 1 . . . . . . . 1 . . . . . 3 4 Weapon 2 | . . 1 1 . . . . . . . . . . . . . . . . Tool/Special 1 | . . . 1 . . . . . . . . . . . . . . . . Average Slot Usage (%) 91 | . 98 99 86 98 100 100 97 99 93 99 100 100 98 84 84 83 67 52 21 Engine 4 | . 14 11 2 . . . . . . . . . . . . . . . . Core 3 | . . . 6 7 7 7 6 7 6 5 5 5 5 5 5 3 . . . Treads 14 | . 27 32 35 . . . . . . . . . . . . . . . . Flight 14 | . . . . 30 30 30 29 29 26 29 29 29 28 23 26 25 23 19 . Device 2 | . . . . 6 7 7 7 7 6 4 5 5 5 5 5 5 4 5 . Storage 8 | . 14 11 9 6 7 7 7 7 6 5 5 5 5 5 5 5 5 5 2 Processor 3 | . . . . 6 7 7 7 7 6 5 5 5 5 5 5 5 5 5 4 Hackware 13 | . . . 5 23 23 23 23 23 26 29 29 29 29 30 27 26 18 15 10 Protection 8 | . 12 21 9 . . . . . . 4 5 5 4 . 3 5 2 . . Energy Gun 3 | . 14 11 . . . . . . . . . . . . . . . . . Ballistic Gun 6 | . 14 11 17 . . . . . . . . . . . . . . . . Slashing Weapon 1 | . . . . 7 7 7 7 7 6 5 5 . . . . . . . . Special Melee Weapon 2 | . . . . 7 7 7 7 7 6 5 5 5 5 4 . . . . . Peak Build Rating 86 | 6 10 17 33 40 41 42 42 46 55 61 61 67 63 86 83 85 82 68 70 Average Rating 37 | 4 8 14 21 39 40 41 41 45 50 60 61 62 62 74 82 84 75 59 44 On Entrance 45 | . 6 10 15 33 40 41 42 36 46 55 61 61 63 58 83 83 82 58 32 Naked Turns . | . . . . . . . . . . . . . . . . . . . . Heaviest Build 43 | 13 30 43 40 19 19 19 19 18 18 20 20 21 21 19 20 28 28 23 25 Greatest Support 85 | 40 40 60 85 20 20 20 20 20 24 24 24 24 25 44 44 45 45 19 3 Greatest Overweight (x) 8 | . 1 . . . . . . . . . . . . . . . 1 7 8 Average Overweight (x) . | . . . . . . . . . . . . . . . . . . . 1 Largest Inventory Capacity 15 | 8 15 15 15 10 10 10 10 10 10 10 10 10 10 10 10 10 10 10 10 Average Capacity 11 | 6 10 15 14 9 10 10 10 10 10 10 10 10 10 10 10 10 10 10 8 Most Carried 15 | 6 11 15 15 10 10 10 10 10 10 10 10 10 10 10 10 10 10 10 10 Average Carried 11 | 3 8 14 14 9 10 10 10 9 9 8 9 9 9 9 10 9 9 9 7 Final Capacity 15 | 8 15 15 10 10 10 10 10 10 10 10 10 10 10 10 10 10 10 10 5 Final Carried 15 | 6 11 15 10 10 10 10 10 10 9 10 10 10 9 10 10 10 10 10 5 Class Distribution -------------------- 46% | Hacker-Sprinter 27% | Mutant 18% | Scavenger-Mutant 6% | Hacker-Mutant Dominant Class ---------------- Mutant | -10/Materials Mutant | -9/Materials Scavenger-Mutant | -8/Materials Hacker-Sprinter | -7/Factory Hacker-Sprinter | -7/Lower Caves Hacker-Sprinter | -7/Lower Caves Hacker-Sprinter | -7/Data Miner Hacker-Sprinter | -6/Proximity Caves Hacker-Sprinter | -6/Factory Hacker-Sprinter | -5/Factory Hacker-Sprinter | -5/Upper Caves Hacker-Sprinter | -5/Warlord Hacker-Sprinter | -4/Proximity Caves Wizard-Sprinter | -4/Factory Hacker-Sprinter | -4/Waste Hacker-Sprinter | -4/Factory Hacker-Sprinter | -4/Armory Hacker-Mutant | -4/Lab Hacker-Mutant | -3/Research Resources | -11 -10 -9 -8 -7 -7 -7 -7 -6 -6 -5 -5 -5 -4 -4 -4 -4 -4 -4 -3 ----------- Run | Yrd Mat Mat Mat Fac Low Low Dat Pro Fac Fac Upp War Pro Fac Was Fac Arm Lab Res Matter Collected 2161 | 255 79 522 943 87 47 10 . 20 . 60 10 . . . 98 10 20 . . Remotely . | . . . . . . . . . . . . . . . . . . . . Salvage Created 4401 | . 381 1628 1812 . . . . . . . . . . . 267 313 . . . Parts 235 | . 22 109 96 . . . . . . . . . . . 4 4 . . . Haulers Intercepted 13 | . 2 6 5 . . . . . . . . . . . . . . . . Recyclers Shooed 4 | . . . 3 . . . . . . . . . . . . 1 . . . Parts Field Recycled . | . . . . . . . . . . . . . . . . . . . . Retrieved Matter . | . . . . . . . . . . . . . . . . . . . . Parts Self-Destructed 2 | . . . . . . . . . . . 2 . . . . . . . . Prevented . | . . . . . . . . . . . . . . . . . . . . Kills | -11 -10 -9 -8 -7 -7 -7 -7 -6 -6 -5 -5 -5 -4 -4 -4 -4 -4 -4 -3 ------- Run | Yrd Mat Mat Mat Fac Low Low Dat Pro Fac Fac Upp War Pro Fac Was Fac Arm Lab Res Combat Hostiles Destroyed 63 | . 6 31 26 . . . . . . . . . . . . . . . . Guns 63 | . 6 31 26 . . . . . . . . . . . . . . . . Classes Destroyed 10 | . 3 6 1 . . . . . . . . . . . . . . . . Worker 8 | . . 5 3 . . . . . . . . . . . . . . . . Builder 1 | . . 1 . . . . . . . . . . . . . . . . . Hauler 13 | . 2 6 5 . . . . . . . . . . . . . . . . Recycler 10 | . . 1 7 . . . . . . . . . . . . 2 . . . Operator 7 | . 1 2 4 . . . . . . . . . . . . . . . . Watcher 7 | . . 5 2 . . . . . . . . . . . . . . . . Swarmer 23 | . . 10 13 . . . . . . . . . . . . . . . . Grunt 24 | . 6 11 7 . . . . . . . . . . . . . . . . Sentry 14 | . . 10 4 . . . . . . . . . . . . . . . . Hunter 2 | . . . 2 . . . . . . . . . . . . . . . . Wasp 1 | . . . . . . . . . . . . . . . . 1 . . . Best Kill Streak 11 | . 3 11 8 . . . . . . . . . . . . 1 . . . Combat Bots Only 6 | . 3 6 5 . . . . . . . . . . . . . . . . Max Kills in Single Turn 2 | . 1 2 2 . . . . . . . . . . . . 1 . . . Gunslinging 1 | . . 1 . . . . . . . . . . . . . . . . . Exploded . | . . . . . . . . . . . . . . . . . . . . Melee . | . . . . . . . . . . . . . . . . . . . . Uniques/NPCs Destroyed . | . . . . . . . . . . . . . . . . . . . . Combat | -11 -10 -9 -8 -7 -7 -7 -7 -6 -6 -5 -5 -5 -4 -4 -4 -4 -4 -4 -3 -------- Run | Yrd Mat Mat Mat Fac Low Low Dat Pro Fac Fac Upp War Pro Fac Was Fac Arm Lab Res Hostile Shots Fired 735 | . 25 145 141 40 . 6 7 4 17 5 4 17 24 27 . 4 111 21 137 Missed 279 | . 6 32 30 21 . 4 3 4 9 3 3 10 15 16 . . 51 5 67 Hits 456 | . 19 113 111 19 . 2 4 . 8 2 1 7 9 11 . 4 60 16 70 Melee 4 | . . . . . . . . . . . . . . . . . 4 . . Projectile 452 | . 19 113 111 19 . 2 4 . 8 2 1 7 9 11 . 4 56 16 70 AOE 1 | . . . . . . . . . . . . . . . . . 1 . . Critical Strikes 7 | . . 2 1 . . . . . . . . . 1 . . 1 2 . . Part Disruptions 2 | . . . . . . . . . . . . . . . . . 2 . . Damage Taken 7513 | . 213 1370 1464 203 . 36 185 . 101 22 13 136 224 189 . 112 1295 407 1543 Core 2682 | . 10 117 192 63 . 20 147 . 61 . . 68 20 97 . 54 325 201 1307 Absorbed by Shields 10 | . . . . 10 . . . . . . . . . . . . . . . Redirected to Shielding 152 | . . . . . . . . . . 14 8 35 44 . . 18 33 . . Regen/Repaired (Parts) 94 | . . 12 . . . . . . . 19 . . . . 63 . . . . Core Remaining (%) 77 | 100 96 70 65 . . . . 67 92 . . . 91 . . . . 41 . Volleys Fired 321 | . 34 144 132 . . . . . . . . . . . . . 5 6 . Largest 2 | . 2 2 2 . . . . . . . . . . . . . 1 1 . Hottest 100 | . 70 88 51 . . . . . . . . . . . . . 58 100 . Shots Fired 621 | . 68 286 256 . . . . . . . . . . . . . 5 6 . Gun 610 | . 68 286 256 . . . . . . . . . . . . . . . . Cannon 11 | . . . . . . . . . . . . . . . . . 5 6 . Launcher . | . . . . . . . . . . . . . . . . . . . . Special . | . . . . . . . . . . . . . . . . . . . . Kinetic 439 | . 34 144 256 . . . . . . . . . . . . . 5 . . Thermal 182 | . 34 142 . . . . . . . . . . . . . . . 6 . Explosive . | . . . . . . . . . . . . . . . . . . . . Electromagnetic . | . . . . . . . . . . . . . . . . . . . . Robot Hit Streak 20 | . 11 19 20 . . . . . . . . . . . . . . 5 . Robot Miss Streak 11 | . 3 11 4 . . . . . . . . . . . . . . . . Penetration Max . | . . . . . . . . . . . . . . . . . . . . Secondary Targets 4 | . . 2 2 . . . . . . . . . . . . . . . . Max Gunslinging Chain 1 | . . 1 1 . . . . . . . . . . . . . . . . Shots Hit Robots 427 | . 41 198 180 . . . 1 . . . . . . . 4 2 . 1 . Core Hits 215 | . 21 119 73 . . . . . . . . . . . . 1 . . 1 Critical Kills . | . . . . . . . . . . . . . . . . . . . . Critical Parts Destroyed . | . . . . . . . . . . . . . . . . . . . . Critical Strikes 10 | . 1 9 . . . . . . . . . . . . . . . . . Burn 10 | . 1 9 . . . . . . . . . . . . . . . . . Melee Attacks 164 | . . . 1 50 . . 8 1 23 19 . 1 3 20 4 12 22 . . Impact 62 | . . . . . . . . . . . . 1 3 20 4 12 22 . . Slashing 102 | . . . 1 50 . . 8 1 23 19 . . . . . . . . . Piercing . | . . . . . . . . . . . . . . . . . . . . Sneak Attacks 3 | . . . . . . . 1 . . . . . . . . 2 . . . Combat Hostiles . | . . . . . . . . . . . . . . . . . . . . Follow-up Attacks . | . . . . . . . . . . . . . . . . . . . . Damage Inflicted 6332 | . 433 2297 2767 . . . 85 . . . . . . . 444 263 . 36 7 Guns 5497 | . 433 2297 2767 . . . . . . . . . . . . . . . . Cannons 36 | . . . . . . . . . . . . . . . . . . 36 . Explosions . | . . . . . . . . . . . . . . . . . . . . Melee 792 | . . . . . . . 85 . . . . . . . 444 263 . . . Ramming 7 | . . . . . . . . . . . . . . . . . . . 7 Kinetic 3875 | . 156 952 2767 . . . . . . . . . . . . . . . . Thermal 1658 | . 277 1345 . . . . . . . . . . . . . . . 36 . Explosive . | . . . . . . . . . . . . . . . . . . . . Electromagnetic . | . . . . . . . . . . . . . . . . . . . . Impact 707 | . . . . . . . . . . . . . . . 444 263 . . . Slashing 85 | . . . . . . . 85 . . . . . . . . . . . . Piercing . | . . . . . . . . . . . . . . . . . . . . Highest Corruption 12 | . . 1 . . . . . . . . . . . 1 1 1 7 12 . Average Corruption 3 | . . 1 . . . . . . . . . . . 1 1 1 4 7 . Corruption Purged . | . . . . . . . . . . . . . . . . . . . . Corruption Blocked . | . . . . . . . . . . . . . . . . . . . . Effects 26 | . . 6 . . . . . . . . . . . . . 1 7 12 . Message Errors 6 | . . 2 . . . . . . . . . . . . . 1 3 . . Matter Fused 10 | . . 1 . . . . . . . . . . . . . . 3 6 . Heat Flow Errors 5 | . . 2 . . . . . . . . . . . . . . 1 2 . Energy Discharges 2 | . . 1 . . . . . . . . . . . . . . . 1 . Parts Rejected 1 | . . . . . . . . . . . . . . . . . . 1 . Data Loss (minor) 2 | . . . . . . . . . . . . . . . . . . 2 . Overload Shots . | . . . . . . . . . . . . . . . . . . . . Overflow Damage 496 | . . . . . . . . . . . . . . . 293 203 . . . Projectiles . | . . . . . . . . . . . . . . . . . . . . Explosions . | . . . . . . . . . . . . . . . . . . . . Melee 496 | . . . . . . . . . . . . . . . 293 203 . . . Knockbacks 6 | . . . . . . . . . . . . . . . 3 3 . . . Impact 5 | . . . . . . . . . . . . . . . 3 2 . . . Kinetic . | . . . . . . . . . . . . . . . . . . . . Secondary 1 | . . . . . . . . . . . . . . . . 1 . . . Self-Inflicted Damage 3 | . . . . . . . . . . . . . . . . . . . 3 Shots . | . . . . . . . . . . . . . . . . . . . . Rammed 4 | . . . . . . . . . . . . 1 . . . . . . 3 Targets Rammed 4 | . . . . . . . . . . . . 1 . . . . . . 3 Kicked . | . . . . . . . . . . . . . . . . . . . . Crushed . | . . . . . . . . . . . . . . . . . . . . Highest Temperature 415 | . 133 415 30 5 . . . . . . . . . . . 12 165 125 . Average Temperature 73 | . 48 86 13 3 . . . . . . . . . . . 3 63 71 . Received Heat Transfer 1380 | . 117 489 450 96 . . . . 9 . . 9 9 9 . 18 111 . 63 Effects 2 | . . 2 . . . . . . . . . . . . . . . . . Shutdowns 1 | . . 1 . . . . . . . . . . . . . . . . . Short Circuit 1 | . . 1 . . . . . . . . . . . . . . . . . Siege Activations . | . . . . . . . . . . . . . . . . . . . . Martial Activations . | . . . . . . . . . . . . . . . . . . . . Shielding Activations . | . . . . . . . . . . . . . . . . . . . . Robots Disrupted . | . . . . . . . . . . . . . . . . . . . . Combat Hostiles . | . . . . . . . . . . . . . . . . . . . . Robots Corrupted 5 | . . . . . . . . . . . . . . . 3 2 . . . Combat Hostiles . | . . . . . . . . . . . . . . . . . . . . Parts Fried 5 | . . . . . . . . . . . . . . . 3 2 . . . Impact Corruptions 12 | . . . . . . . . . . . . . . . 7 5 . . . Robots Melted . | . . . . . . . . . . . . . . . . . . . . Combat Hostiles . | . . . . . . . . . . . . . . . . . . . . Parts Melted 7 | . 1 6 . . . . . . . . . . . . . . . . . Heat Transferred 4730 | . 888 3824 . . . . . . . . . . . . . . . 18 . Parts Sabotaged 9 | . . . . . . . . . . . . . . . . . 9 . . Parts Stolen . | . . . . . . . . . . . . . . . . . . . . Parts Stripped . | . . . . . . . . . . . . . . . . . . . . Power Chain Reactions . | . . . . . . . . . . . . . . . . . . . . Alert | -11 -10 -9 -8 -7 -7 -7 -7 -6 -6 -5 -5 -5 -4 -4 -4 -4 -4 -4 -3 ------- Run | Yrd Mat Mat Mat Fac Low Low Dat Pro Fac Fac Upp War Pro Fac Was Fac Arm Lab Res Maximum Alert Level 2 | . . 1 2 1 . . . . . . . . . . . . 1 . . Low Security (%) 75 | 100 100 82 9 83 . . . . 100 100 . . . 100 100 100 93 . 100 Level 1 17 | . . 17 52 16 . . . . . . . . . . . . 6 . . Level 2 6 | . . . 37 . . . . . . . . . . . . . . . . Level 3 . | . . . . . . . . . . . . . . . . . . . . Level 4 . | . . . . . . . . . . . . . . . . . . . . Level 5 . | . . . . . . . . . . . . . . . . . . . . High Security . | . . . . . . . . . . . . . . . . . . . . Max Security . | . . . . . . . . . . . . . . . . . . . . Peak Influence 507 | . 128 395 507 238 . . . . 59 29 . . . 42 3 33 254 . 80 Initial 223 | . . 14 166 223 . . . . . 23 . . . 32 3 . . . . Average 105 | . 32 79 347 66 . . . . 17 9 . . . 27 . 7 41 . 9 Influence Increases 3719 | . 241 954 873 340 . 105 . 45 129 91 30 15 75 65 . 121 545 . 90 Destroy 0b10 Robot/C 1340 | . 120 620 520 . . . . . . . 20 . . . . 40 20 . . Destroy 0b10 Robot/NC 235 | . 15 100 105 . . . . . . . . . . . . 15 . . . Destroy Leader 380 | . 24 202 144 . . . . . . . 10 . . . . . . . . Allied During Kill 16 | . . . . . . . . . . . . . . . . 12 4 . . Successful Hack 135 | . 22 31 6 10 . . . . 18 10 . . . 22 . 6 10 . . Disable Machine 165 | . . . . 120 . . . . . 15 . . . . . 30 . . . Destroy Structure 188 | . . 1 8 30 . . . . 21 36 . . . 28 . 18 46 . . Partial Spotted 180 | . . . . 60 . . . . 90 . . . . . . . 30 . . Lose Combat Pursuer 1080 | . 60 . 90 120 . 105 . 45 . 30 . 15 75 15 . . 435 . 90 Influence Decreases 3659 | . 206 595 776 746 85 105 . 45 80 114 56 15 23 108 9 121 306 239 30 Entered New Map 850 | . . 21 228 268 32 . . . . 26 10 . . 20 6 . . 239 . Time Decay 2168 | . 206 554 498 264 53 105 . 45 66 88 26 15 8 60 3 63 94 . 20 Lost Part 187 | . . 20 50 . . . . . . . . . 15 8 . . 84 . 10 Lost Ally 158 | . . . . . . . . . . . 20 . . 20 . 58 60 . . Purge Threat 296 | . . . . 214 . . . . 14 . . . . . . . 68 . . Squads Dispatched 24 | . 2 2 4 4 . . . . . 3 . . . 3 . 2 3 . 1 Investigation 7 | . 1 . . 1 . . . . . 2 . . . 1 . 1 1 . . Extermination 5 | . . . . 2 . . . . . 1 . . . . . 1 1 . . Reinforcement 11 | . 1 2 3 1 . . . . . . . . . 2 . . 1 . 1 Assault . | . . . . . . . . . . . . . . . . . . . . Garrison 1 | . . . 1 . . . . . . . . . . . . . . . . Intercept . | . . . . . . . . . . . . . . . . . . . . Searches Triggered . | . . . . . . . . . . . . . . . . . . . . Construction Impeded . | . . . . . . . . . . . . . . . . . . . . Haulers Reinforced . | . . . . . . . . . . . . . . . . . . . . Active Scanning Responses . | . . . . . . . . . . . . . . . . . . . . Cargo Convoy Interrupts . | . . . . . . . . . . . . . . . . . . . . Stealth | -11 -10 -9 -8 -7 -7 -7 -7 -6 -6 -5 -5 -5 -4 -4 -4 -4 -4 -4 -3 --------- Run | Yrd Mat Mat Mat Fac Low Low Dat Pro Fac Fac Upp War Pro Fac Was Fac Arm Lab Res Distress Signals 15 | . 2 1 6 3 . . . . . . . . . . . . 3 . . Communications Jammed . | . . . . . . . . . . . . . . . . . . . . Distress Signals . | . . . . . . . . . . . . . . . . . . . . Times Spotted 250 | . 14 42 43 12 . 7 4 3 6 5 2 23 6 5 . 16 46 1 15 Peak Tracking Total 22 | . 3 4 5 6 . 4 4 2 6 4 2 13 5 5 . 14 22 1 7 Tactical Retreats 30 | . 2 . 5 4 . 2 . 2 . 1 . 1 2 1 . . 9 . 1 Traps | -11 -10 -9 -8 -7 -7 -7 -7 -6 -6 -5 -5 -5 -4 -4 -4 -4 -4 -4 -3 ------- Run | Yrd Mat Mat Mat Fac Low Low Dat Pro Fac Fac Upp War Pro Fac Was Fac Arm Lab Res Traps Triggered 5 | . . 1 . 1 . . . . . . . . . 2 . 1 . . . Indirectly . | . . . . . . . . . . . . . . . . . . . . Trap Hack Attempts . | . . . . . . . . . . . . . . . . . . . . Triggered . | . . . . . . . . . . . . . . . . . . . . Disarmed . | . . . . . . . . . . . . . . . . . . . . Reprogrammed . | . . . . . . . . . . . . . . . . . . . . Reused . | . . . . . . . . . . . . . . . . . . . . Traps Extracted . | . . . . . . . . . . . . . . . . . . . . Installed . | . . . . . . . . . . . . . . . . . . . . Triggered . | . . . . . . . . . . . . . . . . . . . . Machines | -11 -10 -9 -8 -7 -7 -7 -7 -6 -6 -5 -5 -5 -4 -4 -4 -4 -4 -4 -3 ---------- Run | Yrd Mat Mat Mat Fac Low Low Dat Pro Fac Fac Upp War Pro Fac Was Fac Arm Lab Res Machines Disabled 14 | . . . . 8 . . . . . 1 . . . . . 3 . 2 . Max in Single Turn 1 | . . . . 1 . . . . . 1 . . . . . 1 . 1 . Garrison Access 4 | . . . 1 1 . . . . 1 . . . . 1 . . . . . Machines Repaired . | . . . . . . . . . . . . . . . . . . . . Machines Dismantled . | . . . . . . . . . . . . . . . . . . . . Machines Sabotaged . | . . . . . . . . . . . . . . . . . . . . Overloaded Fab Kills . | . . . . . . . . . . . . . . . . . . . . Hacking | -11 -10 -9 -8 -7 -7 -7 -7 -6 -6 -5 -5 -5 -4 -4 -4 -4 -4 -4 -3 --------- Run | Yrd Mat Mat Mat Fac Low Low Dat Pro Fac Fac Upp War Pro Fac Was Fac Arm Lab Res Machines Accessed 52 | . 3 4 6 7 1 1 3 . 8 5 . 2 . 4 . 3 2 2 1 Terminals 27 | . 2 3 4 5 . . . . 5 2 . . . 2 . 2 1 . 1 Fabricators 8 | . . . . 1 . . . . 2 2 . . . 1 . 1 1 . . Repair Stations 3 | . 1 1 . . . . . . . 1 . . . . . . . . . Recycling Units . | . . . . . . . . . . . . . . . . . . . . Scanalyzers 1 | . . . 1 . . . . . . . . . . . . . . . . Garrison Access 4 | . . . 1 1 . . . . 1 . . . . 1 . . . . . Total Hacks 147 | . 11 13 9 19 1 1 20 . 17 13 . 2 . 9 . 6 4 21 1 Successful 100 | . 3 7 5 12 1 1 20 . 9 7 . 2 . 5 . 4 3 21 . Failed 47 | . 8 6 4 7 . . . . 8 6 . . . 4 . 2 1 . 1 Catastrophic 4 | . 1 . . 2 . . . . 1 . . . . . . . . . . Database Lockouts . | . . . . . . . . . . . . . . . . . . . . Manual 75 | . 9 11 6 14 . . . . 16 7 . 1 . 6 . 2 2 . 1 Terminals 74 | . 9 11 6 16 . . . . 12 6 . . . 6 . 4 3 . 1 Fabricators 16 | . . . . 2 . . . . 4 5 . . . 2 . 2 1 . . Repair Stations 6 | . 2 2 . . . . . . . 2 . . . . . . . . . Recycling Units . | . . . . . . . . . . . . . . . . . . . . Scanalyzers 2 | . . . 2 . . . . . . . . . . . . . . . . Garrison Access 4 | . . . 1 1 . . . . 1 . . . . 1 . . . . . Terminal Hacks 70 | . 1 4 1 8 1 1 20 . 4 1 . 2 . 2 . 2 2 21 . Record 22 | . . . . . . . 2 . . . . . . . . . . 20 . Part Schematic 13 | . . . . . . . 10 . 2 . . . . 1 . . . . . Robot Schematic 5 | . . . . . . . 5 . . . . . . . . . . . . Prototype ID Bank 3 | . . . . . . . 3 . . . . . . . . . . . . Open Door 4 | . . . . . 1 1 . . . . . 2 . . . . . . . Level Access Points 1 | . . . . . . . . . 1 . . . . . . . . . . Branch Access Points 1 | . . . . . . . . . . . . . . . . 1 . . . Terminal Index 1 | . . . . 1 . . . . . . . . . . . . . . . Repair Station Index 1 | . . . . 1 . . . . . . . . . . . . . . . Unreport Threat 5 | . . . . 3 . . . . 1 . . . . . . . 1 . . Transport Status 2 | . . 2 . . . . . . . . . . . . . . . . . Recall Investigation 1 | . . . . . . . . . . . . . . . . 1 . . . Recall Extermination 2 | . . . . 1 . . . . . 1 . . . . . . . . . Hauler Manifests 3 | . 1 1 1 . . . . . . . . . . . . . . . . Registered Components 4 | . . 1 . 1 . . . . . . . . . 1 . . 1 . . Registered Prototypes 1 | . . . . 1 . . . . . . . . . . . . . . . Release Object 1 | . . . . . . . . . . . . . . . . . . 1 . Fabricator Hacks 7 | . . . . . . . . . . 2 . . . 2 . 2 1 . . Load Schematic 3 | . . . . . . . . . . 1 . . . 1 . 1 . . . Build 4 | . . . . . . . . . . 1 . . . 1 . 1 1 . . Repair Station Hacks 5 | . 1 2 . . . . . . . 2 . . . . . . . . . Scan Component 2 | . . 1 . . . . . . . 1 . . . . . . . . . Repair 2 | . . 1 . . . . . . . 1 . . . . . . . . . Refit 1 | . 1 . . . . . . . . . . . . . . . . . . Recycling Unit Hacks . | . . . . . . . . . . . . . . . . . . . . Scanalyzer 2 | . . . 2 . . . . . . . . . . . . . . . . Insert Component 1 | . . . 1 . . . . . . . . . . . . . . . . Analyze 1 | . . . 1 . . . . . . . . . . . . . . . . Garrison Access Hacks 4 | . . . 1 1 . . . . 1 . . . . 1 . . . . . Seal Access 4 | . . . 1 1 . . . . 1 . . . . 1 . . . . . Unauthorized Hacks 12 | . 1 1 1 3 . . . . 4 2 . . . . . . . . . Terminals 8 | . 1 1 1 3 . . . . 2 . . . . . . . . . . Botnet 5 | . . . . 3 . . . . 2 . . . . . . . . . . Operators 3 | . 1 1 1 . . . . . . . . . . . . . . . . Fabricators 4 | . . . . . . . . . 2 2 . . . . . . . . . Fabnet 4 | . . . . . . . . . 2 2 . . . . . . . . . Repair Stations . | . . . . . . . . . . . . . . . . . . . . Recycling Units . | . . . . . . . . . . . . . . . . . . . . Scanalyzers . | . . . . . . . . . . . . . . . . . . . . Garrison Access . | . . . . . . . . . . . . . . . . . . . . Data Cores Recovered . | . . . . . . . . . . . . . . . . . . . . Used . | . . . . . . . . . . . . . . . . . . . . Hacking Detections 35 | . 3 4 3 5 . . . . 6 5 . . . 3 . 3 2 . 1 Full Trace Events 6 | . . . . 1 . . . . . 2 . . . 1 . 1 1 . . Feedback Events . | . . . . . . . . . . . . . . . . . . . . Feedback Blocked . | . . . . . . . . . . . . . . . . . . . . Robot Schematics Acquired 5 | . . . . . . . 5 . . . . . . . . . . . . Robots Built . | . . . . . . . . . . . . . . . . . . . . Authchips . | . . . . . . . . . . . . . . . . . . . . Time . | . . . . . . . . . . . . . . . . . . . . Total Robot Build Rating . | . . . . . . . . . . . . . . . . . . . . Part Schematics Acquired 14 | . . . 1 . . . 10 . 2 . . . . 1 . . . . . Parts Built 4 | . . . . . . . . . . 2 . . . . . 1 1 . . Authchips . | . . . . . . . . . . . . . . . . . . . . Time 406 | . . . . . . . . . . 95 . . . 84 . 169 58 . . Total Part Build Rating 23 | . . . . . . . . . . 10 . . . . . 6 7 . . Parts Repaired 2 | . . 1 . . . . . . . 1 . . . . . . . . . Time 57 | . . 32 . . . . . . . 25 . . . . . . . . . Parts Recycled . | . . . . . . . . . . . . . . . . . . . . Recycled Matter . | . . . . . . . . . . . . . . . . . . . . Retrieved Matter . | . . . . . . . . . . . . . . . . . . . . Retrieved Components . | . . . . . . . . . . . . . . . . . . . . Parts Scanalyzed 1 | . . . 1 . . . . . . . . . . . . . . . . Part Schematics Acquired 1 | . . . 1 . . . . . . . . . . . . . . . . Parts Damaged . | . . . . . . . . . . . . . . . . . . . . Bothacking | -11 -10 -9 -8 -7 -7 -7 -7 -6 -6 -5 -5 -5 -4 -4 -4 -4 -4 -4 -3 ------------ Run | Yrd Mat Mat Mat Fac Low Low Dat Pro Fac Fac Upp War Pro Fac Was Fac Arm Lab Res Used RIF Installer . | . . . . . . . . . . . . . . . . . . . . Robots Hacked 15 | . . . . . . . . . . . 1 4 . 1 . 4 5 . . Non-combat . | . . . . . . . . . . . . . . . . . . . . Combat 15 | . . . . . . . . . . . 1 4 . 1 . 4 5 . . Robot Hacks Applied . | . . . . . . . . . . . . . . . . . . . . Relay Couplers Released . | . . . . . . . . . . . . . . . . . . . . Fabnet Peak Effective % 8 | . . . . . . . . . . 6 6 6 8 8 8 8 8 8 2 Autooverrided 15 | . . . . . . . . . . . 1 4 . 1 . 4 5 . . Robots Rewired . | . . . . . . . . . . . . . . . . . . . . Allies Hacked 1 | . . . . . . . . . . . . . . . . 1 . . . Hacks Repelled . | . . . . . . . . . . . . . . . . . . . . Allies | -11 -10 -9 -8 -7 -7 -7 -7 -6 -6 -5 -5 -5 -4 -4 -4 -4 -4 -4 -3 -------- Run | Yrd Mat Mat Mat Fac Low Low Dat Pro Fac Fac Upp War Pro Fac Was Fac Arm Lab Res Total Allies 35 | . . . . . . . . . . . 1 4 . 1 20 4 5 . . Largest Group 20 | . . . . . . . . . . . . 1 . . 20 5 2 . . Highest-Rated Group 739 | . . . . . . . . . . . . 47 . . 739 174 77 . . Highest-Rated Ally 64 | . . . . . . . . . . . . 47 . . 50 64 48 . . Total Orders . | . . . . . . . . . . . . . . . . . . . . Ally Attacks 69 | . . . . . . . . . . . 1 4 . 1 . 54 9 . . Total Damage 1241 | . . . . . . . . . . . 18 77 . 16 . 880 250 . . Kills 5 | . . . . . . . . . . . 1 . . . . 3 1 . . Allies Corrupted 2 | . . . . . . . . . . . . . . . . 2 . . . Allies Melted . | . . . . . . . . . . . . . . . . . . . . Intel | -11 -10 -9 -8 -7 -7 -7 -7 -6 -6 -5 -5 -5 -4 -4 -4 -4 -4 -4 -3 ------- Run | Yrd Mat Mat Mat Fac Low Low Dat Pro Fac Fac Upp War Pro Fac Was Fac Arm Lab Res Active Infowar (turns) 4958 | . . . . 708 199 499 60 554 181 245 353 864 488 143 153 279 232 . . Sensors 4915 | . . . . 708 199 499 60 554 181 245 353 864 488 143 153 279 189 . . Cloaking 43 | . . . . . . . . . . . . . . . . . 43 . . Robot Analysis Total 151 | . . . . . . . 151 . . . . . . . . . . . . Derelict Logs Recovered 8 | . . . . . 1 3 . 1 . . 1 . 2 . . . . . . Drone Launches . | . . . . . . . . . . . . . . . . . . . . Drone Recoveries . | . . . . . . . . . . . . . . . . . . . . Exploration | -11 -10 -9 -8 -7 -7 -7 -7 -6 -6 -5 -5 -5 -4 -4 -4 -4 -4 -4 -3 ------------- Run | Yrd Mat Mat Mat Fac Low Low Dat Pro Fac Fac Upp War Pro Fac Was Fac Arm Lab Res Turns Passed 11162 | 119 876 2908 1322 747 199 499 60 554 181 271 353 864 488 143 153 279 386 531 229 Spaces Moved 9791 | 74 403 1429 522 1320 636 625 105 494 424 422 176 974 373 253 430 256 435 281 159 Core 219 | 15 . . . . . . . . . . . . . . . . . 45 159 Treads 2331 | 59 369 1429 474 . . . . . . . . . . . . . . . . Legs . | . . . . . . . . . . . . . . . . . . . . Wheels 34 | . 34 . . . . . . . . . . . . . . . . . . Hover . | . . . . . . . . . . . . . . . . . . . . Flight 7207 | . . . 48 1320 636 625 105 494 424 422 176 974 373 253 430 256 435 236 . Fastest Speed 20 | 50 115 160 31 31 31 31 31 29 26 26 26 26 26 28 29 29 20 29 50 Average Speed 63 | 137 156 160 145 31 31 31 31 29 28 26 26 26 27 29 29 29 28 86 134 Slowest Speed 450 | 160 160 160 160 31 31 31 34 29 29 26 26 26 31 31 29 34 105 400 450 Overloaded Moves 12 | . . . . . . . . . . . . . . . . . 12 . . Propulsion Burnouts . | . . . . . . . . . . . . . . . . . . . . Robots Hopped 38 | . . . . 13 1 . 1 . 4 3 . 2 2 4 . . 7 1 . Potential Cave-ins 15 | . . . . 4 . . . . . . . . . 7 . . 4 . . Cave-ins Triggered 1 | . . . . . . . . . . . . . . . . . 1 . . Exploration Rate (%) 48 | 6 55 92 48 31 82 84 77 62 16 9 15 87 53 11 95 9 39 99 5 Regions Visited 19 Branch Regions 9 Pre-discovered Areas 34 | . . . . . 1 . 32 . . . 1 . . . . . . . . Known Exits Taken 13 | . . . . 1 1 1 1 1 1 1 1 1 1 . . 1 1 1 . Unknown Exits Taken 4 | 1 1 1 1 . . . . . . . . . . . . . . . . Scrap Searched 9 | . . . . . 3 2 . 3 . . . . 1 . . . . . . Spaces Dug 135 | . . . 1 32 . . 2 1 23 18 . 1 3 20 . 8 26 . . Terrain Destroyed 135 | . . . 1 32 . . 2 1 23 18 . 1 3 20 . 8 26 . . Melee 130 | . . . 1 32 . . 2 1 23 18 . 1 3 20 . 8 21 . . Projectile 5 | . . . . . . . . . . . . . . . . . 5 . . AOE . | . . . . . . . . . . . . . . . . . . . . Terrain Rammed . | . . . . . . . . . . . . . . . . . . . . Walls Destroyed . | . . . . . . . . . . . . . . . . . . . . Machines Disabled . | . . . . . . . . . . . . . . . . . . . . Actions | -11 -10 -9 -8 -7 -7 -7 -7 -6 -6 -5 -5 -5 -4 -4 -4 -4 -4 -4 -3 --------- Run | Yrd Mat Mat Mat Fac Low Low Dat Pro Fac Fac Upp War Pro Fac Was Fac Arm Lab Res Total 13890 | 91 589 1795 831 1569 635 930 122 903 455 560 481 1581 753 298 453 447 656 564 177 Wait 3347 | . 138 152 117 177 . 302 11 405 8 116 304 595 379 16 18 170 173 266 . Move 9705 | 73 402 1428 521 1296 633 624 102 493 415 415 175 971 368 246 429 255 422 278 159 Hop 30 | . . . . 10 1 . 1 . 4 3 . 1 2 3 . . 4 1 . Pick Up 85 | 12 7 19 11 9 . 1 . 2 1 4 1 3 . 4 . 2 6 2 1 Fast Attach 34 | . . 1 4 4 . 1 . . . . . 2 . 1 1 3 12 3 2 Attach 42 | 6 1 4 9 . . . . 2 2 3 . . 1 3 . . 8 1 2 Detach 5 | . . . . . . . . . . . . . . . . . 2 1 2 Swap 50 | . 4 21 15 1 1 . . . 1 . 1 3 . 1 . 2 . . . Drop 87 | . 3 26 21 6 . 2 . . 1 . . 5 . 4 1 3 1 6 8 Fire 321 | . 34 144 132 . . . . . . . . . . . . . 5 6 . Melee 164 | . . . 1 50 . . 8 1 23 19 . 1 3 20 4 12 22 . . Ram 3 | . . . . . . . . . . . . . . . . . . . 3 Kick . | . . . . . . . . . . . . . . . . . . . . Crush . | . . . . . . . . . . . . . . . . . . . . Escape Stasis 17 | . . . . 16 . . . . . . . . . . . . 1 . . Rewire . | . . . . . . . . . . . . . . . . . . . . Trap . | . . . . . . . . . . . . . . . . . . . . Miscellaneous . | . . . . . . . . . . . . . . . . . . . . Route ------- -11/Scrapyard -10/Materials -9/Materials (discovered 6 exits: *Mat x3 / [*Min] / [*Sto x2]) -8/Materials -7/Factory (discovered 2 exits: *Low x2) -7/Lower Caves -7/Lower Caves (discovered 2 exits: *Fac / *Dat) -7/Data Miner -6/Proximity Caves -6/Factory (discovered 5 exits: *Fac x4 / Low) -5/Factory (discovered 2 exits: *Fac / *Upp) -5/Upper Caves -5/Warlord -4/Proximity Caves -4/Factory -4/Waste -4/Factory (discovered 3 exits: Upp x2 / *Arm) -4/Armory -4/Lab -3/Research (discovered 1 exit: Tes) History --------- Turn | Location | Event 6 | -11/Scrapyard | Discovered new exit (range 15) 120 | -11/Scrapyard | Entered Materials 302 | -10/Materials | Build established: Mutant 720 | -10/Materials | Derelicts attacked the area 831 | -10/Materials | Discovered new exit (range 8) 996 | -10/Materials | Entered another Materials area 996 | -9/Materials | Evolved 2 slots: Propulsion x1, Utility x1 1103 | -9/Materials | Discovered new exit (range 5) 1947 | -9/Materials | Discovered new exit (range 13) 2321 | -9/Materials | Discovered new exit (range 12) 2440 | -9/Materials | Build established: Scavenger-Mutant 2640 | -9/Materials | Discovered new exit (range 14) 2892 | -9/Materials | Repaired VTOL Module 3181 | -9/Materials | Discovered new exit (range 10) 3308 | -9/Materials | Build established: Mutant 3437 | -9/Materials | Discovered new exit (range 15) 3797 | -9/Materials | Build established: Scavenger-Mutant 3904 | -9/Materials | Entered another Materials area 3904 | -8/Materials | Evolved 2 slots: Propulsion x1, Utility x1 4797 | -8/Materials | Build established: Mutant 5130 | -8/Materials | Garrison activated, responded to threat 5211 | -8/Materials | Discovered new exit (range 16) 5226 | -8/Materials | Entered Factory 5226 | -7/Factory | Evolved 2 slots: Utility x2 5276 | -7/Factory | Discovered new exit (range 14) 5280 | -7/Factory | Identified exit to Lower Caves 5290 | -7/Factory | Discovered exit to Lower Caves (range 11) 5503 | -7/Factory | Build established: Hacker-Sprinter 5973 | -7/Factory | Entered Lower Caves 5974 | -7/Lower Caves | Encountered a Warlord checkpoint 6033 | -7/Lower Caves | Discovered new exit (range 6) 6034 | -7/Lower Caves | Identified exit to Lower Caves 6143 | -7/Lower Caves | Learned location of Zion (-6) 6172 | -7/Lower Caves | Entered another Lower Caves area 6183 | -7/Lower Caves | Discovered new exit (range 7) 6234 | -7/Lower Caves | Identified exit to Data Miner 6237 | -7/Lower Caves | Spotted B-75 Beast 6640 | -7/Lower Caves | Encountered a Warlord checkpoint 6642 | -7/Lower Caves | Learned Factory stockpile data 6671 | -7/Lower Caves | Entered Data Miner 6671 | -7/Data Miner | Discovered new exit (range 6) 6677 | -7/Data Miner | Met Data Miner 6685 | -7/Data Miner | Learned location of Section 7 (-2) 6685 | -7/Data Miner | Acquired the access code to Warlord's prototype stash 6688 | -7/Data Miner | Received God Mode back door access code from Data Miner 6697 | -7/Data Miner | Interfaced with the Data Conduit 6731 | -7/Data Miner | Identified exit to Proximity Caves 6731 | -7/Data Miner | Entered Proximity Caves 6984 | -6/Proximity Caves | Received a Behemoth hack from an annoying Tinkerer 7155 | -6/Proximity Caves | Spotted B-75 Beast 7262 | -6/Proximity Caves | Discovered new exit (range 6) 7263 | -6/Proximity Caves | Identified exit to Factory 7285 | -6/Proximity Caves | Entered Factory 7285 | -6/Factory | Evolved 2 slots: Propulsion x1, Utility x1 7286 | -6/Factory | Identified exit to Lower Caves 7288 | -6/Factory | Loaded intel: 272 machine locations 7344 | -6/Factory | Identified exit to Factory 7466 | -6/Factory | Entered another Factory area 7466 | -5/Factory | Evolved 2 slots: Utility x2 7467 | -5/Factory | Identified exit to Upper Caves 7468 | -5/Factory | Loaded intel: 288 machine locations 7498 | -5/Factory | Repaired Adv. Sensor Array 7556 | -5/Factory | Discovered new exit (range 5) 7557 | -5/Factory | Identified exit to Factory 7701 | -5/Factory | Fabricated Weapon Mount (x2) 7737 | -5/Factory | Entered Upper Caves 8089 | -5/Upper Caves | A Derelict revealed a hidden shortcut to "reach the base" 8089 | -5/Upper Caves | Identified exit to Warlord 8090 | -5/Upper Caves | Entered Warlord 8176 | -5/Warlord | Opened Warlord's prototype stash 8178 | -5/Warlord | Found Exp. Targeting Computer 8185 | -5/Warlord | Found Prototype Hackware 8185 | -5/Warlord | Identified Ghost Barrier 8232 | -5/Warlord | Warlord's base attacked by MAIN.C 8272 | -5/Warlord | Met Warlord 8582 | -5/Warlord | Warlord forces counterattacked 8608 | -5/Warlord | Opened side exit 8719 | -5/Warlord | Lost 11 allies 8838 | -5/Warlord | Spotted Striker 8873 | -5/Warlord | Lost 26 allies 8907 | -5/Warlord | Warlord base infiltrated, sounded retreat 8950 | -5/Warlord | Spotted Striker 8952 | -5/Warlord | Discovered new exit (range 7) 8953 | -5/Warlord | Identified exit to Proximity Caves 8954 | -5/Warlord | Entered Proximity Caves 8955 | -4/Proximity Caves | Learned location of 1 exit from Research 8957 | -4/Proximity Caves | Learned Research terminal intel 9371 | -4/Proximity Caves | Spotted B-86 Titan 9437 | -4/Proximity Caves | Discovered exit to Factory (range 13) 9440 | -4/Proximity Caves | Lost 3 parts (2n1u) 9442 | -4/Proximity Caves | Entered Factory 9442 | -4/Factory | Evolved 2 slots: Propulsion x2 9443 | -4/Factory | Loaded intel: 226 machine locations 9585 | -4/Factory | Manually triggered Chute Trap 9585 | -4/Factory | Sucked down chute 9585 | -4/Factory | Entered Waste 9586 | -4/Waste | Joined by Warlord forces that had cleared the area 9692 | -4/Waste | Murdered 4 allies 9712 | -4/Waste | Discovered new exit (range 13) 9737 | -4/Waste | Identified exit to Factory 9738 | -4/Waste | Entered Factory 9738 | -4/Factory | Accompanied by 5 allies 9739 | -4/Factory | Loaded intel: 338 machine locations 9951 | -4/Factory | Fabricated Fusion Reactor (x1) 9987 | -4/Factory | Identified exit to Upper Caves 9987 | -4/Factory | Identified exit to Armory 10017 | -4/Factory | Entered Armory 10018 | -4/Armory | Met VL-GR5, who suggested a friendly competition 10018 | -4/Armory | Loaded intel: 93 machine locations 10206 | -4/Armory | Crushed by falling debris 10245 | -4/Armory | Lost 5 parts (2n3u) 10272 | -4/Armory | Fabricated Field Propulsion Array? 10338 | -4/Armory | Spotted B-86 Titan 10349 | -4/Armory | Found Exp. Hacking Suite 10387 | -4/Armory | Discovered new exit (range 3) 10401 | -4/Armory | Identified exit to Lab 10403 | -4/Armory | Entered Lab 10407 | -4/Lab | Discovered new exit (range 9) 10411 | -4/Lab | Identified exit to Research 10412 | -4/Lab | Hidden lab's door opened automatically 10412 | -4/Lab | Sensor layout match revealed 10413 | -4/Lab | Gained access to the hidden lab's interior 10428 | -4/Lab | Lost 6 parts (2p3n1u) 10459 | -4/Lab | Decrypted terminal 10459 | -4/Lab | Acquired modification code for an L2 power cell 10673 | -4/Lab | Found Prototype Energy Cannon 10673 | -4/Lab | Identified Warp Cannon 10684 | -4/Lab | Found Prototype Protection 10684 | -4/Lab | Identified Exp. Powered Armor 10734 | -4/Lab | Found Alien Artifact 10809 | -4/Lab | Detected by scanners 10833 | -4/Lab | Decrypted terminal 10879 | -4/Lab | Confronted by A5 10893 | -4/Lab | Decrypted terminal 10893 | -4/Lab | Decrypted terminal 10894 | -4/Lab | Decrypted terminal 10896 | -4/Lab | Found Alien Artifact 10903 | -4/Lab | Core integrity fell below 50% 10914 | -4/Lab | System corruption reached 10% 10934 | -4/Lab | Entered Research 10934 | -3/Research | Evolved 2 slots: Utility x2 10935 | -3/Research | Identified exit to Testing 10936 | -3/Research | Loaded intel: 116 machine locations 10936 | -3/Research | Identified LC Capacitor 10937 | -3/Research | Loaded intel: 23 terminal locations 10963 | -3/Research | Lost 4 parts (4n) 11015 | -3/Research | Build established: Hacker-Mutant 11093 | -3/Research | Identified Core Expander 11093 | -3/Research | Installed Core Expander, added new Power slot 11114 | -3/Research | Core integrity fell below 50% 11157 | -3/Research | Core integrity fell below 20% 11163 | -3/Research | Destroyed by H-77 Assassin with Coil Gun Last Messages --------------- Dropped Lgt. Quantum Reactor. LC Capacitor integrity failing. Penetrated by Slug. Slug penetrates Wall. Penetrated by Slug. LC Capacitor integrity failing. Slammed into O-16 Technician. Exp. Hacking Suite destroyed. Penetrated by Slug. Slug penetrates Wall. Penetrated by Slug. Slug penetrates Wall. Penetrated by Slug. Slug penetrates Wall. LC Capacitor integrity failing. S-43 Plague destroyed. Penetrated by Slug. Slug penetrates Wall. Penetrated by Slug. Slug penetrates Wall. Map ----- +----------------------------------------------------+ | ?????????????# #????????????????????? | | ?????????????# !!! #????????????????????? | | ?????????????# !! #????????????????????? | | ?????????????# !! #????????????????????? | | ############## #????????????????????? | | # !!! # #????????????????????? | | # !!! # #????????????????????? | | # """ !!! # #????????????????????? | | # """ #+##+########?????????????????? | | # """ # #?????????????????? | | # " #?????????????????? | | # # = #?????????????????? | | # """ """ + *%= #?????????????????? | | # """ """ ########= #?????????????????? | | # """ """ #??????# #?????????????????? | | # #??????# #?????????????????? | | # #??????# #?????????????????? | | ##############??????# #?????????????????? | | ????????????????????# #???####??????????? | | ????????????????????# #?? ??????????? | | ????????????????????# #?? ???????????? | | ?????""?????????????#hh #? """ ??T???????? | | ?????Y"??????????#### #? """ ?????????? | | ?????""??????????# o # """ ?????????? | | ?????????????????# # """ ????????? | | ?????????????????# @ """ ????????? | | ?????????????????# # """ ????????? | | ????????############# # """ ?????????? | | ????????# # #? ?????????? | | ????????# #Y #? ?????????? | | ????????#! + #?? ????????? | | ????????# # ###;######?######?? | | ????????# # #?????? ? | | ????????# # #????? ?? | | ????????# # #????? ] ??? | | ????????########+#### #???? ???? | | ???????????????# #??# ####? """ ???? | | ???????????????# #??# # """ ??? | | ???????????????# #??# # """ ?? | | ?????"""???????# #??# + """ ?? | | ?????"""???????# #??# # """ ?? | | ?????"""???????# #??########### # """ ??? | | ???????????????# #????????????# #? """ ???? | | ???????????????# #???####?????#=#? ???? | | ?????"""???????# #???#""#?????#!#?? ??? | | ?????"""???????# #####T"####### #?? ?? | | ?????"""???????# *!! #??? ? | | ???????????????# ! #???##### ?? | | ???????????????# #?????????#? | | ????????????#+## #??????????? | +----------------------------------------------------+ Best States ------------- Heat Dissipation 81 Energy Generation 23 Energy Capacity 295 Matter Stores 300 Matter Capacity 300 Sight Range 16 Robot Scan Range 16 Terrain Scan Density 10 Cloak Strength 4 Armor Coverage 450 Propulsion Shielding 66 Evasion (%) 64 Recoil Reduction 4 Kinecelleration 40 Offensive Hacking 63 Item Schematics ----------------- Imp. Propulsion Shielding | -8/Materials | Scanalyzed Combat Drone Bay | -7/Data Miner | Free Lgt. Regenerative Plating | -7/Data Miner | Free Cld. Aerolev Unit | -7/Data Miner | Free Exp. Utility Shielding | -7/Data Miner | Free Ion Burst Cannon | -7/Data Miner | Free Arm. Medium Treads | -7/Data Miner | Free Adv. System Shield | -7/Data Miner | Free Adv. Plasma Cannon | -7/Data Miner | Free Wave Gun | -7/Data Miner | Free Imp. Linear Gravjet | -7/Data Miner | Free Weapon Mount | -6/Factory | Hacked Adv. Targeting Computer | -6/Factory | Hacked Fusion Reactor | -4/Factory | Hacked Robot Schematics ------------------ S-27 Virus | -7/Data Miner | Free R-10 Processor | -7/Data Miner | Free L-41 Fighter | -7/Data Miner | Free M-22 Extractor | -7/Data Miner | Free B-60 Warrior | -7/Data Miner | Free Fabricated ------------ Weapon Mount | x2 | -5/Factory Fusion Reactor | x1 | -4/Factory Field Propulsion Array | x1 | -4/Armory | Preloaded Repaired ---------- VTOL Module | 52% | -9/Materials Adv. Sensor Array | 20% | -5/Factory Alien Tech Used ----------------- LC Capacitor Core Expander Achievements -------------- None Challenges ------------ None Game ------ Seed LinearStructuralCompressor Manual? 0 Play Time 02:23:40 Cumulative 248.7 hours Start 2025.09.22 @ 10:21:40 End 2025.09.22 @ 14:11:11 Sessions 3 Manual Loads 0 Difficulty Rogue Special Mode None Game No. 221 Rogue 221 Adventurer 0 Explorer 0 Win Type - Total 15 Types 8/0/2/2/1/0/0/1/0/1 Lore% 93 Gallery% 86 Achievement% 75 Wizard Run 0 Options --------- Layout 1 ASCII 0 Keyboard 0 Movement Numpad Keybinds 0 Fullscreen 1 Font 24/Proggy Map View 50x35 Zoom Use 0% Tactical HUD 0 Map Filters NONE Filters NONE Steam 1 RUN: 9374547e-470e-43f4-a630-dc8d62489302